Cogmind - Beta 11.1 @@@ ROGUE MODE // 2022.06.17 @ 10:27:19 Player: Demise Result: Destroyed by G-34 Mercenary with Small Laser Performance ------------- Evolutions (0) 0 Regions Visited (1) 200 Robots Destroyed (28) 140 Value Destroyed (429) 429 Prototype IDs (0) 0 Alien Tech Used (0) 0 Bonus (0) 0 TOTAL SCORE: 769 Bonus ------- None Cogmind --------- Core Integrity 0/250 Matter 285/300 Energy 250/250 System Corruption 0% Temperature Cool (54) Movement Rolling (110) Ox2 Location -10/Materials Parts ------- > --- POWER (1) -------- Ion Engine > --- PROPULSION (2) --- Wheel Wheel > --- UTILITY (2) ------ High-capacity Storage Unit Weapon Shielding > --- WEAPON (2) ------- Small Laser Light Assault Rifle > --- INVENTORY (20) --- Wheel Large Storage Unit Signal Interpreter Signal Interpreter Improved Terrain Scanner Seismic Detector Peak State ------------ > --- POWER ------------ Ion Engine > --- PROPULSION ------- Wheel Wheel > --- UTILITY ---------- Improved Heat Sink Small Storage Unit > --- WEAPON ----------- Assault Rifle Light Assault Rifle > --- INVENTORY -------- Wheel Wheel Wheel Wheel Wheel Improved Terrain Scanner Small Laser Light Assault Rifle [Rating: 10] Favorites ----------- Power Ion Engine Engine Ion Engine Propulsion Wheel Wheel Wheel Utility Seismic Detector Device Seismic Detector Storage High-capacity Storage Unit Processor Signal Interpreter Protection Weapon Shielding Weapon Light Assault Rifle Energy Gun Small Laser Ballistic Gun Light Assault Rifle Build | -11 -10 ------- Run | Scr Mat Slots Evolved . | . . Power . | . . Propulsion . | . . Utility . | . . Weapon . | . . Parts Attached 29 | 8 21 Power 2 | 1 1 Engine 2 | 1 1 Core . | . . Reactor . | . . Propulsion 6 | 2 4 Treads . | . . Leg . | . . Wheel 6 | 2 4 Hover . | . . Flight . | . . Utility 16 | 3 13 Device 9 | 2 7 Storage 3 | 1 2 Processor 1 | . 1 Hackware . | . . Protection 3 | . 3 Artifact . | . . Weapon 5 | 2 3 Energy Gun 2 | 1 1 Energy Cannon . | . . Ballistic Gun 3 | 1 2 Ballistic Cannon . | . . Launcher . | . . Special Weapon . | . . Impact Weapon . | . . Slashing Weapon . | . . Piercing Weapon . | . . Special Melee Weapon . | . . Unidentified Prototypes . | . . Parts Lost 6 | . 6 Power 1 | . 1 Propulsion 3 | . 3 Utility . | . . Weapon 2 | . 2 Highest Loss Streak 5 | . 5 To Critical Strikes . | . . Average Slot Usage (%) 93 | . 93 Engine 9 | . 9 Wheel 27 | . 27 Device 8 | . 8 Storage 14 | . 14 Protection 4 | . 4 Energy Gun 5 | . 5 Ballistic Gun 22 | . 22 Naked Turns . | . . Heaviest Build 49 | 14 49 Greatest Support 20 | 20 20 Greatest Overweight (x) 2 | 1 2 Average Overweight (x) . | . . Largest Inventory Capacity 20 | 8 20 Average Capacity 13 | 6 14 Most Carried 8 | 8 8 Average Carried 6 | 5 6 Final Capacity 20 | 8 20 Final Carried 8 | 8 6 Class Distribution -------------------- 100% | Mutant Dominant Class ---------------- Mutant | -10/Materials Resources | -11 -10 ----------- Run | Scr Mat Matter Collected 716 | 328 388 Remotely 156 | 156 . Salvage Created 762 | 189 573 Parts 56 | 19 37 Haulers Intercepted 1 | . 1 Recyclers Shooed 1 | 1 . Parts Field Recycled . | . . Retrieved Matter . | . . Parts Self-Destructed . | . . Prevented . | . . Kills | -11 -10 ------- Run | Scr Mat Combat Hostiles Destroyed 14 | . 14 Guns 14 | . 14 Classes Destroyed 8 | 3 5 Worker 4 | 2 2 Builder 1 | . 1 Tunneler 5 | 5 . Hauler 1 | . 1 Recycler 1 | 1 . Watcher 2 | . 2 Swarmer 6 | . 6 Grunt 8 | . 8 Best Kill Streak 6 | 6 5 Combat Bots Only 5 | . 5 Max Kills in Single Turn 2 | 1 2 Gunslinging . | . . Exploded . | . . Melee . | . . Uniques/NPCs Destroyed . | . . Combat | -11 -10 -------- Run | Scr Mat Damage Taken 816 | . 816 Core 251 | . 251 Absorbed by Shields . | . . Redirected to Shielding 41 | . 41 Core Remaining (%) 100 | 100 . Volleys Fired 90 | 16 74 Largest 2 | 2 2 Hottest 60 | 60 60 Shots Fired 172 | 32 140 Gun 172 | 32 140 Cannon . | . . Launcher . | . . Special . | . . Kinetic 135 | 16 119 Thermal 37 | 16 21 Explosive . | . . Electromagnetic . | . . Robot Hit Streak 18 | 4 18 Robot Miss Streak 4 | 4 4 Penetration Max . | . . Secondary Targets 1 | . 1 Max Gunslinging Chain 1 | . 1 Shots Hit Robots 112 | 16 96 Core Hits 43 | 9 34 Critical Kills . | . . Critical Parts Destroyed . | . . Critical Strikes . | . . Melee Attacks . | . . Impact . | . . Slashing . | . . Piercing . | . . Sneak Attacks . | . . Combat Hostiles . | . . Follow-up Attacks . | . . Damage Inflicted 1242 | 206 1036 Guns 1242 | 206 1036 Cannons . | . . Explosions . | . . Melee . | . . Ramming . | . . Kinetic 990 | 117 873 Thermal 252 | 89 163 Explosive . | . . Electromagnetic . | . . Impact . | . . Slashing . | . . Piercing . | . . Highest Corruption . | . . Average Corruption . | . . Corruption Purged . | . . Corruption Blocked . | . . Overload Shots . | . . Overflow Damage . | . . Projectiles . | . . Explosions . | . . Melee . | . . Knockbacks . | . . Impact . | . . Kinetic . | . . Secondary . | . . Self-Inflicted Damage . | . . Shots . | . . Rammed . | . . Targets Rammed . | . . Kicked . | . . Crushed . | . . Highest Temperature 54 | 15 54 Average Temperature 14 | 10 14 Received Heat Transfer 291 | . 291 Siege Activations . | . . Robots Corrupted . | . . Combat Hostiles . | . . Parts Fried . | . . Impact Corruptions . | . . Robots Melted . | . . Combat Hostiles . | . . Parts Melted 1 | 1 . Heat Transferred 550 | 200 350 Parts Sabotaged . | . . Parts Stolen . | . . Parts Stripped . | . . Power Chain Reactions . | . . Missiles Intercepted . | . . Alert | -11 -10 ------- Run | Scr Mat Peak Influence 312 | 40 312 Initial 26 | . 26 Average 174 | 18 199 Maximum Alert Level 1 | . 1 Low Security (%) 49 | 100 41 Level 1 50 | . 58 Level 2 . | . . Level 3 . | . . Level 4 . | . . Level 5 . | . . High Security . | . . Max Security . | . . Squads Dispatched 3 | . 3 Investigation 2 | . 2 Extermination . | . . Reinforcement 1 | . 1 Assault . | . . Garrison . | . . Intercept . | . . Searches Triggered . | . . Construction Impeded . | . . Haulers Reinforced . | . . Active Scanning Responses . | . . Cargo Convoy Interrupts . | . . Stealth | -11 -10 --------- Run | Scr Mat Distress Signals 1 | . 1 Communications Jammed . | . . Distress Signals . | . . Times Spotted 24 | . 24 Peak Tracking Total 5 | . 5 Tactical Retreats 2 | . 2 Traps | -11 -10 ------- Run | Scr Mat Traps Triggered 3 | . 3 Indirectly . | . . Trap Hack Attempts . | . . Triggered . | . . Disarmed . | . . Reprogrammed . | . . Reused . | . . Traps Extracted . | . . Installed . | . . Triggered . | . . Machines | -11 -10 ---------- Run | Scr Mat Machines Disabled . | . . Max in Single Turn . | . . Machines Sabotaged . | . . Garrisons Compromised . | . . Overloaded Fab Kills . | . . Hacking | -11 -10 --------- Run | Scr Mat Machines Accessed 8 | . 8 Terminals 7 | . 7 Fabricators . | . . Repair Stations . | . . Recycling Units 1 | . 1 Scanalyzers . | . . Garrison Access . | . . Total Hacks 26 | . 26 Successful 13 | . 13 Failed 12 | . 12 Catastrophic . | . . Database Lockouts 1 | . 1 Manual 22 | . 22 Terminals 24 | . 24 Fabricators . | . . Repair Stations . | . . Recycling Units 2 | . 2 Scanalyzers . | . . Garrison Access . | . . Terminal Hacks 6 | . 6 Robot Analysis 3 | . 3 Locate Traps 2 | . 2 Registered Prototypes 1 | . 1 Fabricator Hacks . | . . Repair Station Hacks . | . . Recycling Unit Hacks 1 | . 1 Retrieve Components 1 | . 1 Scanalyzer . | . . Garrison Access Hacks . | . . Unauthorized Hacks 6 | . 6 Terminals 5 | . 5 Assimilate 1 | . 1 Botnet 3 | . 3 Operators 1 | . 1 Fabricators . | . . Repair Stations . | . . Recycling Units 1 | . 1 Tunnel 1 | . 1 Scanalyzers . | . . Garrison Access . | . . Data Cores Recovered . | . . Used . | . . Hacking Detections 7 | . 7 Full Trace Events 1 | . 1 Feedback Events . | . . Feedback Blocked . | . . Robot Schematics Acquired . | . . Robots Built . | . . Authchips . | . . Time . | . . Total Robot Build Rating . | . . Part Schematics Acquired . | . . Parts Built . | . . Authchips . | . . Time . | . . Total Part Build Rating . | . . Parts Repaired . | . . Time . | . . Parts Recycled . | . . Recycled Matter . | . . Retrieved Matter . | . . Retrieved Components 6 | . 6 Parts Scanalyzed . | . . Part Schematics Acquired . | . . Parts Damaged . | . . Bothacking | -11 -10 ------------ Run | Scr Mat Used RIF Installer . | . . Robots Hacked . | . . Non-combat . | . . Combat . | . . Robot Hacks Applied . | . . Relay Couplers Released . | . . Fabnet Peak Effective % . | . . Robots Rewired . | . . Allies Hacked . | . . Hacks Repelled . | . . Allies | -11 -10 -------- Run | Scr Mat Total Allies . | . . Largest Group . | . . Highest-Rated Group . | . . Highest-Rated Ally . | . . Total Orders . | . . Ally Attacks . | . . Total Damage . | . . Kills . | . . Allies Corrupted . | . . Allies Melted . | . . Intel | -11 -10 ------- Run | Scr Mat Robot Analysis Total 3 | . 3 Derelict Logs Recovered . | . . Drone Launches . | . . Drone Recoveries . | . . Exploration | -11 -10 ------------- Run | Scr Mat Turns Passed 932 | 128 804 Spaces Moved 656 | 83 573 Core 41 | 41 . Treads . | . . Legs . | . . Wheels 615 | 42 573 Hover . | . . Flight . | . . Fastest Speed 50 | 50 80 Average Speed 91 | 69 94 Slowest Speed 110 | 100 110 Overloaded Moves . | . . Propulsion Burnouts . | . . Robots Hopped . | . . Cave-ins Triggered . | . . Exploration Rate (%) 46 | 4 89 Regions Visited 1 Branch Regions . Pre-discovered Areas 1 | . 1 Known Exits Taken . | . . Unknown Exits Taken 1 | 1 . Scrap Searched . | . . Spaces Dug . | . . Terrain Destroyed . | . . Melee . | . . Projectile . | . . AOE . | . . Terrain Rammed . | . . Walls Destroyed . | . . Machines Disabled . | . . Actions | -11 -10 --------- Run | Scr Mat Total 834 | 125 709 Wait 25 | . 25 Move 655 | 82 573 Hop . | . . Pick Up 19 | 15 4 Fast Attach 11 | 3 8 Attach 11 | 5 6 Detach 4 | 1 3 Swap 7 | . 7 Drop 12 | 3 9 Fire 90 | 16 74 Melee . | . . Ram . | . . Kick . | . . Crush . | . . Escape Stasis . | . . Rewire . | . . Trap . | . . Miscellaneous . | . . Route ------- -11/Scrapyard -10/Materials (discovered 4 exits: [*Mat x2] / *Min x2) History --------- Turn | Location | Event 6 | -11/Scrapyard | Discovered new exit (range 16) 129 | -11/Scrapyard | Entered Materials 222 | -10/Materials | Discovered new exit (range 5) 253 | -10/Materials | Identified exit to Mines 287 | -10/Materials | Central database locked down 332 | -10/Materials | Build established: Mutant 400 | -10/Materials | Discovered new exit (range 16) 453 | -10/Materials | Discovered exit to Mines (range 13) 601 | -10/Materials | Core integrity fell below 50% 620 | -10/Materials | Core integrity fell below 20% 664 | -10/Materials | Lost 5 parts (1p2n2w) 702 | -10/Materials | Discovered new exit (range 12) 933 | -10/Materials | Destroyed by G-34 Mercenary with Small Laser Last Messages --------------- 00709_ U-05 Engineer lays Concrete. 00710_ U-05 Engineer builds a Wall. 00712_ U-05 Engineer lays Concrete. 00733_ Connecting with Terminal... 00753_ U-05 Engineer destroyed. 00756_ Acquired 12 matter. 00789_ Connecting with Terminal... >>Trojan(Assimilate) Trojan loaded successfully. Testing... System interface override in place. 00792_ O-16 Technician: "IFF HANDSHAKE FAILED. SECURING TERMINAL." 00795_ A-02 Transporter destroyed. 00802_ Acquired Signal Interpreter. 00803_ Acquired 3 matter. 00804_ ALERT: Hostiles spotted, dispatching reinforcements to Terminal M008. 00806_ Acquired Signal Interpreter. 00863_ Acquired Ion Engine. 00906_ W-16 Scout sends out distress signal. 00913_ Acquired 17 matter. Map ----- +----------------------------------------------------+ | # = # """""#??????# #??# #######+### | | # # ! """ #??????# #??# """ #??# | | # # = #??????# #??# """ #??# """ | | #########==% #???#### ##?# """ #??# """ | | ### ##+############ #?# #??# """ | | ! #?##########??# | | ^ #?????????????# """ | | """ #?????????????# """ | | """" ###### #????????????????"" | | """" ######### #????## ##????????????????? | | #########+####??# #??###############?#### | | + #??# #### #????? | | """ # """ """ #??# #????? | | """" # """ """ #?## #### #????? | | """" # """ """ #?# #?# #######+###????? | | # #?# #?# ## #??????? | | ###+##########?# T #?# ## " #??????? | | #### #?#%#??????????# #?# ## """ #??????? | | ???# ###|##?????????# #?# ## """ #??????? | | ???# ! #?????#######+##### ## """ #??????? | | ???# #??#??# ! |* # T# "" #??????? | | ???# #? #### """%""" # ## """ #??????? | | ?###### ## ## """ """ # ## "" #??????? | | ?# # ## """ """ # ## "" #??????? | | ?# ## # ## " #??????? | | ?# # ## !@ # ## #??????? | | ?# ##############g#### #########??????? | | ?# #### #????????o???# #??# ???????????????? | | ### #####+#####????????# #??# ???????????????? | | # # #????????# #??# ???????????????? | | + + T #????????# #??? ?????????????### | | = # < # ! #????????# ???????????????????# | | # # ! #????????+ ???????????????????# | | ##### """ % #????????# ???????????????????# | | #???# """ #????????###???????????????????# | | #???# """ #??????????????????????????????# | | #???# #??????????????????????????????# | | #???###########??????????????????????????????### | | ###??????????????????????????????????????????????? | | ?????????????????????????????????????????????????? | | ?????????????????????????????????????????????????? | | ?????????????????????????????????????????????????? | | | | | | | | | | | | | | | | | +----------------------------------------------------+ Best States ------------- Heat Dissipation 39 Energy Generation 10 Energy Capacity 250 Matter Stores 300 Matter Capacity 300 Sight Range 16 Terrain Scan Density 10 Weapon Shielding 33 Evasion (%) 50 Item Schematics ----------------- None Robot Schematics ------------------ None Fabricated ------------ Nothing Alien Tech Used ----------------- None Achievements -------------- None Challenges ------------ None Game ------ Seed LightAssemblyRailgun Manual? 0 Play Time 00:18:00 Cumulative 604.4 hours Start 2022.06.17 @ 09:19:39 End 2022.06.17 @ 10:27:19 Sessions 3 Manual Loads 0 Difficulty Rogue Special Mode None Game No. 485 Rogue 485 Adventurer 0 Explorer 0 Win Type - Total 5 Types 4/0/0/1/0/0/0/0/0 Lore% 72 Gallery% 84 Achievement% 66 Wizard Run 0 Options --------- ASCII 0 Keyboard 1 Movement Numpad Keybinds 0 Fullscreen 1 Font 12/Terminus Map View 83x54 Tactical HUD 1 Map Filters NONE Filters NONE Steam 1 RUN: ee48c84a-4926-4584-964b-15dc0c66b41f